fUSD/lending_fUSD_20260601
["ID","MTS","AMOUNT","RATE_DAILY","PERIOD"]
[423639944,1780271446000,-507.0,0.0002,2]
[423639958,1780271446000,-156.0,0.0002,2]
[423639954,1780271446000,-186.0,0.0002,2]
[423639933,1780271446000,-500.0,0.0001978,2]
[423639998,1780271446000,-153.0,0.00020913,2]
[423640022,1780271446000,-649.601898,0.00021481,2]
[423640002,1780271446000,-507.0,0.00021,2]
[423640033,1780271446000,-1334.460671,0.00021481,2]
[423640036,1780271446000,-151.0,0.00021481,2]
[423640038,1780271446000,-151.0,0.00021481,2]
[423640037,1780271446000,-151.0,0.00021481,2]
[423640035,1780271446000,-151.0,0.00021481,2]
[423640040,1780271446000,-1852.621902,0.00021481,2]
[423640051,1780271446000,-657011.6241483,0.00021481,2]
[423640050,1780271446000,-5671.8957019,0.00021481,2]
[423640039,1780271446000,-151.0,0.00021481,2]
[423640042,1780271446000,-1852.621902,0.00021481,2]
[423640041,1780271446000,-1852.621902,0.00021481,2]
[423640043,1780271446000,-1852.621902,0.00021481,2]
[423640044,1780271446000,-151.0,0.00021481,2]
[423640026,1780271446000,-518.696371,0.00021481,2]
[423640045,1780271446000,-151.0,0.00021481,2]
[423640047,1780271446000,-151.0,0.00021481,2]
[423640046,1780271446000,-151.0,0.00021481,2]
[423640049,1780271446000,-657011.6241483,0.00021481,2]
[423640052,1780271446000,-905.80281227,0.00021487,2]
[423640056,1780271446000,-166.66,0.00021879,2]
[423640055,1780271446000,-4260.94,0.00021772,2]
[423640057,1780271446000,-5000.0,0.00021918,2]
[423640054,1780271446000,-589.82,0.000216,7]
[423640062,1780271446000,-151.0,0.00021927,2]
[423640053,1780271446000,-2586.85809042,0.00021564,2]
[423640059,1780271446000,-1546.0,0.00021927,2]
[423640060,1780271446000,-152.0,0.00021927,2]
[423640000,1780271446000,-3415.87687989,0.00021,7]
[423640048,1780271446000,-5671.895702,0.00021481,2]
[423640029,1780271446000,-518.696371,0.00021481,2]
[423640061,1780271446000,-151.0,0.00021927,2]
[423640034,1780271446000,-151.0,0.00021481,2]
[423640031,1780271446000,-1334.460671,0.00021481,2]
[423640003,1780271446000,-265.0,0.00021,2]
[423640004,1780271446000,-1097.0,0.00021,2]
[423640005,1780271446000,-691.0,0.00021,2]
[423640007,1780271446000,-288.0,0.00021,2]
[423640008,1780271446000,-186.0,0.00021,2]
[423640010,1780271446000,-156.0,0.00021,2]
[423640009,1780271446000,-995.0,0.00021,2]
[423640001,1780271446000,-387.0,0.00021,2]
[423640011,1780271446000,-1196.0,0.00021,2]
[423640013,1780271446000,-1114.45,0.000211,2]
[423640058,1780271446000,-159.802164,0.00021918,2]
[423640015,1780271446000,-166.66,0.00021222,2]
[423640023,1780271446000,-649.601898,0.00021481,2]
[423640006,1780271446000,-1179.0,0.00021,2]
[423640014,1780271446000,-530.43,0.00021205,2]
[423640024,1780271446000,-649.601898,0.00021481,2]
[423640030,1780271446000,-1334.460671,0.00021481,2]
[423640027,1780271446000,-518.696371,0.00021481,2]
[423640025,1780271446000,-649.601898,0.00021481,2]
[423640019,1780271446000,-12555.0403117,0.0002148,2]
[423640028,1780271446000,-518.696371,0.00021481,2]
[423640017,1780271446000,-3623.0,0.00021312,5]
[423640012,1780271446000,-2494.55939288,0.00021016,2]
[423640020,1780271446000,-151.0,0.00021481,2]
[423640016,1780271446000,-2621.0,0.00021312,5]
[423640032,1780271446000,-1334.460671,0.00021481,2]
[423640021,1780271446000,-151.0,0.00021481,2]
[423640018,1780271446000,-4769.70241981,0.00021374,2]
[423640111,1780271447000,-4260.94,0.00023544,2]
[423640092,1780271447000,-4933.55,0.00022691,2]
[423640094,1780271447000,-354.51006341,0.00023,2]
[423640097,1780271447000,-265.0,0.00023,2]
[423640090,1780271447000,-652.64,0.00022691,2]
[423640096,1780271447000,-507.0,0.00023,2]
[423640098,1780271447000,-1097.0,0.00023,2]
[423640095,1780271447000,-387.0,0.00023,2]
[423640101,1780271447000,-185.31,0.00023,30]
[423640091,1780271447000,-758.18,0.00022691,2]
[423640089,1780271447000,-1254.59,0.00022691,2]
[423640106,1780271447000,-166.66,0.00023193,2]
[423640100,1780271447000,-1179.0,0.00023,2]
[423640105,1780271447000,-1196.0,0.00023,2]
[423640104,1780271447000,-995.0,0.00023,2]
[423640109,1780271447000,-176.81,0.00023425,2]
[423640103,1780271447000,-186.0,0.00023,2]
[423640102,1780271447000,-288.0,0.00023,2]
[423640107,1780271447000,-2884.75459676,0.00023208,2]
[423640110,1780271447000,-1173.34378675,0.000235,2]
[423640108,1780271447000,-261.01,0.00023288,2]
[423640099,1780271447000,-691.0,0.00023,2]
[423640114,1780271447000,-151.0,0.00023823,7]
[423640112,1780271447000,-1000.0,0.00023743,2]
[423640093,1780271447000,-1114.45,0.000227,7]
[423640072,1780271447000,-691.0,0.00022,2]
[423640085,1780271447000,-10269.34222228,0.000225,2]
[423640125,1780271447000,-288.0,0.00024,2]
[423640063,1780271447000,-152.0,0.00021989,2]
[423640075,1780271447000,-186.0,0.00022,2]
[423640065,1780271447000,-153.0,0.00021989,2]
[423640064,1780271447000,-151.0,0.00021989,2]
[423640066,1780271447000,-815.0747695,0.00022,7]
[423640067,1780271447000,-450.0,0.00022,2]
[423640068,1780271447000,-387.0,0.00022,2]
[423640071,1780271447000,-1097.0,0.00022,2]
[423640070,1780271447000,-265.0,0.00022,2]
[423640074,1780271447000,-288.0,0.00022,2]
[423640086,1780271447000,-166.66,0.00022536,2]
[423640073,1780271447000,-1179.0,0.00022,2]
[423640076,1780271447000,-995.0,0.00022,2]
[423640079,1780271447000,-9778.57841304,0.00022013,2]
[423640078,1780271447000,-763.1,0.00022,2]
[423640087,1780271447000,-500.0,0.00022584,2]
[423640080,1780271447000,-528.09684069,0.000221,7]
[423640077,1780271447000,-1196.0,0.00022,2]
[423640088,1780271447000,-2781.82699784,0.0002266,2]
[423640083,1780271447000,-308.24,0.000222,2]
[423640081,1780271447000,-2682.57183977,0.00022112,2]
[423640082,1780271447000,-11714.72484017,0.00022141,2]
[423640084,1780271447000,-531.6,0.00022353,2]
[423640069,1780271447000,-507.0,0.00022,2]
[423640124,1780271447000,-1179.0,0.00024,2]
[423640118,1780271447000,-500.0,0.00024,2]
[423640159,1780271447000,-531.6,0.00026296,2]
[423640143,1780271447000,-300.0,0.00025,2]
[423640141,1780271447000,-695.0,0.00025,2]
[423640146,1780271447000,-1209.0,0.00025,2]
[423640147,1780271447000,-1114.45,0.00025,7]
[423640145,1780271447000,-1002.0,0.00025,2]
[423640152,1780271447000,-243.5,0.00025786,2]
[423640153,1780271447000,-200.0,0.00025835,2]
[423640154,1780271447000,-1351.0,0.000259,3]
[423640157,1780271447000,-2000.0,0.00026,2]
[423640155,1780271447000,-550.0,0.00026,2]
[423640156,1780271447000,-500.0,0.00026,2]
[423640142,1780271447000,-1186.0,0.00025,2]
[423640160,1780271447000,-1836.785998,0.00026384,2]
[423640161,1780271447000,-1836.785998,0.00026384,2]
[423640158,1780271447000,-500.0,0.00026004,2]
[423640163,1780271447000,-1836.785998,0.00026384,2]
[423640166,1780271447000,-1836.785998,0.00026384,2]
[423640165,1780271447000,-1836.785998,0.00026384,2]
[423640169,1780271447000,-1836.785998,0.00026384,2]
[423640168,1780271447000,-1836.785998,0.00026384,2]
[423640164,1780271447000,-1836.785998,0.00026384,2]
[423640167,1780271447000,-1836.785998,0.00026384,2]
[423640170,1780271447000,-1836.785998,0.00026384,2]
[423640113,1780271447000,-2991.49051684,0.00023756,2]
[423640162,1780271447000,-1836.785998,0.00026384,2]
[423640151,1780271447000,-530.43,0.00025644,2]
[423640144,1780271447000,-197.0,0.00025,2]
[423640150,1780271447000,-507.31049268,0.0002551,7]
[423640117,1780271447000,-1256.76188349,0.00024,2]
[423640119,1780271447000,-387.0,0.00024,2]
[423640120,1780271447000,-507.0,0.00024,2]
[423640123,1780271447000,-691.0,0.00024,2]
[423640116,1780271447000,-1039.36066149,0.00024,2]
[423640115,1780271447000,-26897.0,0.0002387,2]
[423640121,1780271447000,-265.0,0.00024,2]
[423640139,1780271447000,-269.0,0.00025,2]
[423640126,1780271447000,-186.0,0.00024,2]
[423640128,1780271447000,-1196.0,0.00024,2]
[423640127,1780271447000,-995.0,0.00024,2]
[423640129,1780271447000,-243.5,0.00024174,2]
[423640136,1780271447000,-184409.06640047,0.00025,2]
[423640122,1780271447000,-1097.0,0.00024,2]
[423640132,1780271447000,-231.54,0.00024658,2]
[423640130,1780271447000,-531.6,0.00024324,2]
[423640137,1780271447000,-393.0,0.00025,2]
[423640138,1780271447000,-510.0,0.00025,2]
[423640133,1780271447000,-1000.0,0.00024658,2]
[423640131,1780271447000,-2000.0,0.000245,2]
[423640134,1780271447000,-150.0,0.00024876,22]
[423640135,1780271447000,-763.1,0.00024915,7]
[423640140,1780271447000,-1112.135698,0.00025,2]
[423640148,1780271447000,-500.0,0.00025315,2]
[423640149,1780271447000,-4260.94,0.00025316,7]
[423640217,1780271448000,-151.0,0.00027397,2]
[423640220,1780271448000,-151.0,0.00027397,2]
[423640214,1780271448000,-151.0,0.00027397,2]
[423640210,1780271448000,-1406.279124,0.00027397,2]
[423640209,1780271448000,-1406.279124,0.00027397,2]
[423640205,1780271448000,-1406.279124,0.00027397,2]
[423640208,1780271448000,-1406.279124,0.00027397,2]
[423640206,1780271448000,-1406.279124,0.00027397,2]
[423640203,1780271448000,-1406.279124,0.00027397,2]
[423640204,1780271448000,-1406.279124,0.00027397,2]
[423640219,1780271448000,-151.0,0.00027397,2]
[423640207,1780271448000,-1406.279124,0.00027397,2]
[423640222,1780271448000,-151.0,0.00027397,2]
[423640225,1780271448000,-151.0,0.00027397,2]
[423640213,1780271448000,-151.0,0.00027397,2]
[423640212,1780271448000,-151.0,0.00027397,2]
[423640215,1780271448000,-151.0,0.00027397,2]
[423640221,1780271448000,-151.0,0.00027397,2]
[423640216,1780271448000,-151.0,0.00027397,2]
[423640218,1780271448000,-151.0,0.00027397,2]
[423640223,1780271448000,-151.0,0.00027397,2]
[423640235,1780271448000,-288.517632,0.00027397,2]
[423640227,1780271448000,-151.0,0.00027397,2]
[423640234,1780271448000,-151.0,0.00027397,2]
[423640231,1780271448000,-151.0,0.00027397,2]
[423640230,1780271448000,-151.0,0.00027397,2]
[423640201,1780271448000,-1406.279124,0.00027397,2]
[423640211,1780271448000,-151.0,0.00027397,2]
[423640202,1780271448000,-1406.279124,0.00027397,2]
[423640172,1780271448000,-165.184,0.00026413,2]
[423640200,1780271448000,-1406.279124,0.00027397,2]
[423640174,1780271448000,-928.0,0.00026413,2]
[423640171,1780271448000,-1836.785998,0.00026384,2]
[423640173,1780271448000,-3550.0,0.00026413,2]
[423640176,1780271448000,-525.0,0.00026413,2]
[423640186,1780271448000,-1114.45,0.000268,7]
[423640175,1780271448000,-1226.0,0.00026413,2]
[423640177,1780271448000,-1273.0,0.00026413,2]
[423640178,1780271448000,-150.0,0.00026413,2]
[423640181,1780271448000,-159.17220578,0.00026452,2]
[423640179,1780271448000,-418.0,0.00026413,2]
[423640184,1780271448000,-381.51633189,0.00026452,2]
[423640183,1780271448000,-155.67787027,0.00026452,2]
[423640180,1780271448000,-6067.0,0.00026413,2]
[423640182,1780271448000,-286.5099704,0.00026452,2]
[423640185,1780271448000,-500.0,0.00026784,2]
[423640188,1780271448000,-1546.0,0.00026827,3]
[423640189,1780271448000,-2000.0,0.00026849,7]
[423640198,1780271448000,-300.0,0.00027397,2]
[423640187,1780271448000,-5531.0,0.000268,5]
[423640191,1780271448000,-4260.94,0.00027088,7]
[423640197,1780271448000,-231.54,0.00027397,2]
[423640194,1780271448000,-210.42,0.00027397,30]
[423640195,1780271448000,-150.0,0.00027397,2]
[423640190,1780271448000,-658.0,0.00026863,10]
[423640193,1780271448000,-491.51,0.000273,14]
[423640192,1780271448000,-632.0,0.00027137,2]
[423640196,1780271448000,-1500.0,0.00027397,2]
[423640199,1780271448000,-1406.279124,0.00027397,2]
[423640229,1780271448000,-151.0,0.00027397,2]
[423640232,1780271448000,-151.0,0.00027397,2]
[423640233,1780271448000,-151.0,0.00027397,2]
[423640263,1780271448000,-173.417716,0.00027976,7]
[423640262,1780271448000,-239.79164,0.00027976,7]
[423640264,1780271448000,-1406.279124,0.00027976,7]
[423640267,1780271448000,-1406.279124,0.00027976,7]
[423640269,1780271448000,-649.601898,0.00027976,7]
[423640270,1780271448000,-649.601898,0.00027976,7]
[423640265,1780271448000,-1406.279124,0.00027976,7]
[423640284,1780271448000,-1836.785998,0.00027976,7]
[423640283,1780271448000,-1334.460671,0.00027976,7]
[423640273,1780271448000,-151.0,0.00027976,7]
[423640272,1780271448000,-518.696371,0.00027976,7]
[423640280,1780271448000,-1836.785998,0.00027976,7]
[423640276,1780271448000,-518.696371,0.00027976,7]
[423640274,1780271448000,-518.696371,0.00027976,7]
[423640279,1780271448000,-1334.460671,0.00027976,7]
[423640281,1780271448000,-1334.460671,0.00027976,7]
[423640278,1780271448000,-518.696371,0.00027976,7]
[423640282,1780271448000,-151.0,0.00027976,7]
[423640277,1780271448000,-181.538058,0.00027976,7]
[423640287,1780271448000,-1836.785998,0.00027976,7]
[423640289,1780271448000,-151.0,0.00027976,7]
[423640285,1780271448000,-151.0,0.00027976,7]
[423640288,1780271448000,-1836.785998,0.00027976,7]
[423640290,1780271448000,-151.0,0.00027976,7]
[423640291,1780271448000,-151.0,0.00027976,7]
[423640286,1780271448000,-1334.460671,0.00027976,7]
[423640226,1780271448000,-177.060749,0.00027397,2]
[423640271,1780271448000,-649.601898,0.00027976,7]
[423640268,1780271448000,-649.601898,0.00027976,7]
[423640275,1780271448000,-151.0,0.00027976,7]
[423640260,1780271448000,-657011.6241483,0.00027976,2]
[423640228,1780271448000,-151.0,0.00027397,2]
[423640266,1780271448000,-1406.279124,0.00027976,7]
[423640224,1780271448000,-151.0,0.00027397,2]
[423640236,1780271448000,-4620.84,0.00027397,10]
[423640239,1780271448000,-6119.18,0.00027397,10]
[423640241,1780271448000,-239.6554,0.00027397,2]
[423640238,1780271448000,-7343.02,0.00027397,10]
[423640240,1780271448000,-239.6554,0.00027397,2]
[423640242,1780271448000,-313.6,0.000274,7]
[423640237,1780271448000,-8811.63,0.00027397,10]
[423640246,1780271448000,-632.0,0.00027671,2]
[423640244,1780271448000,-701.23,0.000274,7]
[423640243,1780271448000,-3012.5,0.000274,14]
[423640247,1780271448000,-763.1,0.00027831,7]
[423640245,1780271448000,-500.0,0.00027588,14]
[423640255,1780271448000,-300.0,0.00027975,10]
[423640249,1780271448000,-210.17944749,0.00027911,30]
[423640256,1780271448000,-300.0,0.00027975,10]
[423640258,1780271448000,-657011.6241483,0.00027976,2]
[423640257,1780271448000,-5671.895702,0.00027976,2]
[423640251,1780271448000,-12555.0403117,0.00027974,2]
[423640253,1780271448000,-300.0,0.00027975,10]
[423640261,1780271448000,-151.0,0.00027976,7]
[423640248,1780271448000,-578.12,0.00027872,7]
[423640250,1780271448000,-151.0,0.00027973,7]
[423640254,1780271448000,-300.0,0.00027975,10]
[423640252,1780271448000,-776.12834704,0.00027975,10]
[423640259,1780271448000,-5671.8957019,0.00027976,2]
[423640330,1780271449000,-200.0,0.0002844,2]
[423640336,1780271449000,-260.15294102,0.0002846,2]
[423640340,1780271449000,-1428.38747117,0.00028482,2]
[423640327,1780271449000,-166.99726066,0.00028386,2]
[423640328,1780271449000,-500.0,0.00028416,16]
[423640325,1780271449000,-161.35566711,0.00028354,2]
[423640331,1780271449000,-200.0,0.0002844,2]
[423640332,1780271449000,-200.0,0.0002844,2]
[423640326,1780271449000,-166.3183966,0.00028354,2]
[423640322,1780271449000,-155.56990815,0.00028354,2]
[423640324,1780271449000,-193.98409769,0.00028354,2]
[423640342,1780271449000,-701.23,0.000285,7]
[423640329,1780271449000,-210.17944749,0.00028425,30]
[423640339,1780271449000,-205.31326045,0.00028467,2]
[423640363,1780271449000,-831.51979762,0.00028757,2]
[423640341,1780271449000,-693.39197629,0.00028482,2]
[423640337,1780271449000,-281.0895347,0.0002846,2]
[423640347,1780271449000,-773.24136889,0.00028647,2]
[423640345,1780271449000,-745.65223615,0.00028592,2]
[423640348,1780271449000,-1063.47,0.00028652,30]
[423640349,1780271449000,-1063.42,0.00028653,30]
[423640346,1780271449000,-555.0,0.0002863,5]
[423640344,1780271449000,-719.04747942,0.00028537,2]
[423640343,1780271449000,-1114.45,0.000285,7]
[423640351,1780271449000,-482.74,0.00028657,30]
[423640362,1780271449000,-217.81,0.00028744,30]
[423640361,1780271449000,-217.74,0.00028739,30]
[423640333,1780271449000,-200.0,0.0002844,2]
[423640338,1780271449000,-270.12294958,0.0002846,2]
[423640334,1780271449000,-3079.04764629,0.00028452,14]
[423640294,1780271449000,-1852.621902,0.00027976,7]
[423640323,1780271449000,-164.15872095,0.00028354,2]
[423640292,1780271449000,-151.0,0.00027976,7]
[423640296,1780271449000,-1852.621902,0.00027976,7]
[423640359,1780271449000,-217.81,0.00028715,7]
[423640293,1780271449000,-151.0,0.00027976,7]
[423640295,1780271449000,-1852.621902,0.00027976,7]
[423640298,1780271449000,-151.0,0.00027976,7]
[423640308,1780271449000,-180.13511916,0.00028354,2]
[423640297,1780271449000,-1852.621902,0.00027976,7]
[423640299,1780271449000,-151.0,0.00027976,7]
[423640300,1780271449000,-151.0,0.00027976,7]
[423640302,1780271449000,-239.6554,0.00027976,7]
[423640301,1780271449000,-151.0,0.00027976,7]
[423640303,1780271449000,-860.08707738,0.00028,60]
[423640306,1780271449000,-531.6,0.00028267,2]
[423640335,1780271449000,-230.53775102,0.0002846,2]
[423640307,1780271449000,-152.0,0.00028283,3]
[423640304,1780271449000,-600.0,0.00028,2]
[423640309,1780271449000,-174.35742371,0.00028354,2]
[423640312,1780271449000,-187.09850581,0.00028354,2]
[423640311,1780271449000,-161.49656433,0.00028354,2]
[423640310,1780271449000,-178.58920526,0.00028354,2]
[423640321,1780271449000,-154.06848018,0.00028354,2]
[423640313,1780271449000,-153.21867551,0.00028354,2]
[423640316,1780271449000,-161.90372201,0.00028354,2]
[423640314,1780271449000,-168.95264336,0.00028354,2]
[423640315,1780271449000,-164.48780133,0.00028354,2]
[423640317,1780271449000,-166.28898748,0.00028354,2]
[423640320,1780271449000,-191.12378792,0.00028354,2]
[423640318,1780271449000,-166.91214356,0.00028354,2]
[423640319,1780271449000,-222.13718411,0.00028354,2]
[423640305,1780271449000,-632.0,0.00028205,3]
[423640355,1780271449000,-217.81,0.00028687,2]
[423640372,1780271449000,-1063.42,0.00028817,7]
[423640354,1780271449000,-217.74,0.00028682,2]
[423640399,1780271449000,-373.19,0.00028996,2]
[423640403,1780271449000,-228.63,0.00029,30]
[423640396,1780271449000,-482.16,0.00028983,2]
[423640402,1780271449000,-219.55083264,0.00029,2]
[423640398,1780271449000,-436.41,0.00028995,2]
[423640400,1780271449000,-9000.22049144,0.00029,2]
[423640397,1780271449000,-482.74,0.00028985,2]
[423640394,1780271449000,-1063.47,0.00028981,2]
[423640393,1780271449000,-961.58486558,0.00028977,2]
[423640401,1780271449000,-10670.38346668,0.00029,2]
[423640392,1780271449000,-217.81,0.00028974,7]
[423640405,1780271449000,-4260.94,0.00029,7]
[423640350,1780271449000,-482.16,0.00028654,30]
[423640406,1780271449000,-526.65237753,0.00029,2]
[423640404,1780271449000,-277.78,0.00029,30]
[423640407,1780271449000,-217.74,0.00029,30]
[423640408,1780271449000,-181.75,0.00029,2]
[423640409,1780271449000,-217.81,0.00029003,30]
[423640413,1780271449000,-1481.2378076,0.0002903,2]
[423640411,1780271449000,-251.88,0.00029028,2]
[423640414,1780271449000,-217.81,0.00029031,2]
[423640410,1780271449000,-151.0,0.0002901,7]
[423640412,1780271449000,-217.74,0.00029029,2]
[423640416,1780271449000,-217.74,0.00029058,7]
[423640420,1780271449000,-217.74,0.00029116,2]
[423640417,1780271449000,-217.81,0.0002906,7]
[423640421,1780271449000,-217.81,0.00029117,2]
[423640418,1780271449000,-217.74,0.00029087,30]
[423640419,1780271449000,-217.81,0.00029089,30]
[423640395,1780271449000,-1063.42,0.00028982,2]
[423640391,1780271449000,-188.64740034,0.00028971,2]
[423640415,1780271449000,-997.16350561,0.00029032,2]
[423640384,1780271449000,-217.74,0.00028913,30]
[423640387,1780271449000,-210.17944749,0.00028938,30]
[423640353,1780271449000,-373.19,0.00028671,30]
[423640364,1780271449000,-217.74,0.00028768,2]
[423640357,1780271449000,-560.78,0.00028708,7]
[423640356,1780271449000,-801.85129954,0.00028702,2]
[423640358,1780271449000,-217.74,0.0002871,7]
[423640360,1780271449000,-632.0,0.00028739,3]
[423640365,1780271449000,-217.81,0.00028773,2]
[423640368,1780271449000,-3012.5,0.000288,14]
[423640367,1780271449000,-313.6,0.000288,7]
[423640366,1780271449000,-217.74,0.00028797,7]
[423640374,1780271449000,-482.74,0.00028821,7]
[423640375,1780271449000,-217.74,0.00028826,30]
[423640369,1780271449000,-217.81,0.00028801,7]
[423640370,1780271449000,-862.28603014,0.00028812,2]
[423640352,1780271449000,-436.41,0.00028669,30]
[423640371,1780271449000,-1063.47,0.00028816,7]
[423640383,1780271449000,-217.81,0.00028888,7]
[423640381,1780271449000,-894.19061325,0.00028867,2]
[423640380,1780271449000,-217.81,0.00028859,2]
[423640382,1780271449000,-217.74,0.00028884,7]
[423640373,1780271449000,-482.16,0.00028818,7]
[423640386,1780271449000,-927.27566594,0.00028922,2]
[423640377,1780271449000,-436.41,0.00028832,7]
[423640379,1780271449000,-217.74,0.00028855,2]
[423640390,1780271449000,-217.74,0.00028971,7]
[423640388,1780271449000,-217.74,0.00028942,2]
[423640389,1780271449000,-217.81,0.00028945,2]
[423640378,1780271449000,-373.19,0.00028833,7]
[423640376,1780271449000,-217.81,0.0002883,30]
[423640385,1780271449000,-217.81,0.00028916,30]
[423640463,1780271450000,-1536.04360648,0.00029578,2]
[423640459,1780271450000,-1971.41352924,0.00029501,43]
[423640460,1780271450000,-2052.4042448,0.00029501,43]
[423640457,1780271450000,-1669.48299426,0.00029501,43]
[423640448,1780271450000,-928.0,0.00029413,2]
[423640454,1780271450000,-361.94243229,0.00029467,2]
[423640456,1780271450000,-755.70190916,0.00029501,43]
[423640458,1780271450000,-1862.90188409,0.00029501,43]
[423640455,1780271450000,-701.23,0.000295,7]
[423640453,1780271450000,-210.17944749,0.00029452,30]
[423640464,1780271450000,-152.0,0.00029652,30]
[423640461,1780271450000,-2245.42575629,0.00029501,43]
[423640462,1780271450000,-150.0,0.00029534,2]
[423640465,1780271450000,-226.2217868,0.00029682,2]
[423640467,1780271450000,-168.51375674,0.00029682,2]
[423640471,1780271450000,-204.54915868,0.00029683,2]
[423640472,1780271450000,-216.16440807,0.00029683,2]
[423640477,1780271450000,-322.99312867,0.00029683,2]
[423640475,1780271450000,-357.17841052,0.00029683,2]
[423640474,1780271450000,-174.22859941,0.00029683,2]
[423640469,1780271450000,-202.86114975,0.00029683,2]
[423640468,1780271450000,-180.39166326,0.00029682,2]
[423640476,1780271450000,-167.66732712,0.00029683,2]
[423640470,1780271450000,-196.01566885,0.00029683,2]
[423640473,1780271450000,-348.71484741,0.00029683,2]
[423640479,1780271450000,-306.43735103,0.00029683,2]
[423640488,1780271450000,-221.76764193,0.00029683,2]
[423640481,1780271450000,-191.53533824,0.00029683,2]
[423640466,1780271450000,-370.86642179,0.00029682,2]
[423640451,1780271450000,-150.0,0.00029413,2]
[423640528,1780271450000,-152.0,0.00029802,7]
[423640450,1780271450000,-525.0,0.00029413,2]
[423640478,1780271450000,-374.19701162,0.00029683,2]
[423640427,1780271450000,-482.74,0.0002915,30]
[423640423,1780271450000,-217.81,0.00029146,7]
[423640425,1780271450000,-1063.42,0.00029147,30]
[423640422,1780271450000,-217.74,0.00029145,7]
[423640426,1780271450000,-482.16,0.00029148,30]
[423640424,1780271450000,-1063.47,0.00029146,30]
[423640429,1780271450000,-373.19,0.00029159,30]
[423640439,1780271450000,-179.35756026,0.000293,7]
[423640428,1780271450000,-436.41,0.00029158,30]
[423640437,1780271450000,-632.0,0.00029273,4]
[423640434,1780271450000,-217.92,0.00029232,7]
[423640433,1780271450000,-217.81,0.00029204,2]
[423640447,1780271450000,-3550.0,0.00029413,2]
[423640438,1780271450000,-209.523056,0.000293,7]
[423640440,1780271450000,-1063.47,0.00029311,7]
[423640430,1780271450000,-217.74,0.00029174,30]
[423640431,1780271450000,-217.81,0.00029175,30]
[423640432,1780271450000,-217.74,0.00029203,2]
[423640435,1780271450000,-217.75,0.00029232,7]
[423640441,1780271450000,-1063.42,0.00029312,7]
[423640445,1780271450000,-373.19,0.00029322,7]
[423640444,1780271450000,-436.41,0.00029321,7]
[423640442,1780271450000,-482.16,0.00029313,7]
[423640452,1780271450000,-6067.0,0.00029413,2]
[423640446,1780271450000,-2105.0,0.00029322,5]
[423640443,1780271450000,-482.74,0.00029314,7]
[423640449,1780271450000,-1226.0,0.00029413,2]
[423640436,1780271450000,-500.0,0.00029268,18]
[423640489,1780271450000,-158.50637335,0.00029683,2]
[423640536,1780271450000,-293.5,0.00029999,3]
[423640490,1780271450000,-333.82428713,0.00029683,2]
[423640526,1780271450000,-177.55092032,0.00029801,2]
[423640520,1780271450000,-461.07550205,0.00029793,2]
[423640527,1780271450000,-410.62652089,0.00029801,2]
[423640518,1780271450000,-156.0,0.00029747,30]
[423640521,1780271450000,-520.30588204,0.00029793,2]
[423640519,1780271450000,-1196.0,0.00029747,30]
[423640523,1780271450000,-540.24589915,0.00029793,2]
[423640516,1780271450000,-186.0,0.00029747,30]
[423640522,1780271450000,-562.1790694,0.00029793,2]